[Event "Early-Titled-Tuesday-Blitz-June-18-2024"]
[Site "Chess.com"]
[Date "2024.06.18"]
[Round "9"]
[White "ellatambien"]
[Black "ShahMatKanal"]
[Result "1-0"]
[WhiteElo "2697"]
[BlackElo "2492"]
[TimeControl "180+1"]
[EndTime "9:46:51 PDT"]
[Termination "ellatambien won by checkmate"]

1. e4 {[%clk 0:03:00.9]} 1... c6 {[%clk 0:02:59.3]} 2. d4 {[%clk 0:02:58.8]}
2... g6 {[%clk 0:02:57]} 3. c4 {[%clk 0:02:56.5]} 3... d6 {[%clk 0:02:53]} 4.
Nc3 {[%clk 0:02:56.3]} 4... Nd7 {[%clk 0:02:51.3]} 5. Be3 {[%clk 0:02:55.7]}
5... Bg7 {[%clk 0:02:50.2]} 6. Qd2 {[%clk 0:02:54.8]} 6... h6 {[%clk 0:02:48.7]}
7. f3 {[%clk 0:02:53.6]} 7... a6 {[%clk 0:02:43.1]} 8. Bd3 {[%clk 0:02:49.3]}
8... b5 {[%clk 0:02:41.8]} 9. Nge2 {[%clk 0:02:46.1]} 9... bxc4 {[%clk
0:02:36.3]} 10. Bxc4 {[%clk 0:02:42.1]} 10... Ngf6 {[%clk 0:02:35]} 11. O-O
{[%clk 0:02:39.6]} 11... a5 {[%clk 0:02:22.5]} 12. b3 {[%clk 0:02:35.1]} 12...
Ba6 {[%clk 0:02:19.6]} 13. Rac1 {[%clk 0:02:26.6]} 13... Bxc4 {[%clk 0:02:15.3]}
14. bxc4 {[%clk 0:02:27.5]} 14... h5 {[%clk 0:02:03.8]} 15. Na4 {[%clk
0:02:23.9]} 15... O-O {[%clk 0:02:01.3]} 16. c5 {[%clk 0:02:21.7]} 16... dxc5
{[%clk 0:01:30.2]} 17. Nxc5 {[%clk 0:02:20.2]} 17... Nxc5 {[%clk 0:01:30.3]} 18.
Rxc5 {[%clk 0:02:18.9]} 18... Qd7 {[%clk 0:01:23.1]} 19. Rfc1 {[%clk 0:02:18.7]}
19... Rfc8 {[%clk 0:01:22.5]} 20. R1c2 {[%clk 0:02:15.2]} 20... a4 {[%clk
0:01:18]} 21. Nc1 {[%clk 0:02:15]} 21... Ne8 {[%clk 0:01:09.4]} 22. Bf2 {[%clk
0:02:11.5]} 22... Nd6 {[%clk 0:01:06.9]} 23. Nd3 {[%clk 0:01:47]} 23... Nb7
{[%clk 0:00:35]} 24. R5c4 {[%clk 0:01:45.2]} 24... Nd6 {[%clk 0:00:30.2]} 25.
Rc5 {[%clk 0:01:45.4]} 25... Nb7 {[%clk 0:00:30.1]} 26. R5c4 {[%clk 0:01:45.6]}
26... Nd6 {[%clk 0:00:30.3]} 27. Rb4 {[%clk 0:01:46.1]} 27... Nb5 {[%clk
0:00:27.2]} 28. Rcc4 {[%clk 0:01:40.4]} 28... a3 {[%clk 0:00:25.9]} 29. Nc5
{[%clk 0:01:35.4]} 29... Qd6 {[%clk 0:00:25.8]} 30. Nb3 {[%clk 0:01:31.6]} 30...
Rd8 {[%clk 0:00:22.9]} 31. Qc1 {[%clk 0:01:07.5]} 31... Ra6 {[%clk 0:00:19.2]}
32. g3 {[%clk 0:01:01.8]} 32... Kh7 {[%clk 0:00:16.1]} 33. Kg2 {[%clk
0:01:00.8]} 33... h4 {[%clk 0:00:16]} 34. Qg5 {[%clk 0:00:57.4]} 34... hxg3
{[%clk 0:00:15]} 35. hxg3 {[%clk 0:00:57.4]} 35... Kg8 {[%clk 0:00:14.7]} 36.
Qc5 {[%clk 0:00:53.7]} 36... Qf6 {[%clk 0:00:12.7]} 37. e5 {[%clk 0:00:45.6]}
37... Qf5 {[%clk 0:00:11.9]} 38. Qxe7 {[%clk 0:00:42.5]} 38... Rda8 {[%clk
0:00:10.5]} 39. Qh4 {[%clk 0:00:38.5]} 39... Qb1 {[%clk 0:00:09.9]} 40. Nc5
{[%clk 0:00:32.8]} 40... Qxa2 {[%clk 0:00:09.5]} 41. Nxa6 {[%clk 0:00:32.7]}
41... Rxa6 {[%clk 0:00:10.4]} 42. Ra4 {[%clk 0:00:31.8]} 42... Rxa4 {[%clk
0:00:09.1]} 43. Rxa4 {[%clk 0:00:32.7]} 43... Bf8 {[%clk 0:00:08.4]} 44. Ra8
{[%clk 0:00:32.8]} 44... Qd5 {[%clk 0:00:07.5]} 45. Qe7 {[%clk 0:00:30.4]} 45...
Kh7 {[%clk 0:00:01.5]} 46. Rxf8 {[%clk 0:00:28.8]} 46... Nxd4 {[%clk 0:00:01.7]}
47. Rxf7+ {[%clk 0:00:28.7]} 47... Kh6 {[%clk 0:00:01.6]} 48. Rh7# {[%clk
0:00:28.6]} 1-0

[Event "Early-Titled-Tuesday-Blitz-June-18-2024"]
[Site "Chess.com"]
[Date "2024.06.18"]
[Round "9"]
[White "LastGladiator1"]
[Black "ChessLover0108"]
[Result "0-1"]
[WhiteElo "2982"]
[BlackElo "2942"]
[TimeControl "180+1"]
[EndTime "9:46:52 PDT"]
[Termination "ChessLover0108 won by resignation"]

1. d4 {[%clk 0:03:00.9]} 1... Nf6 {[%clk 0:02:56.1]} 2. Nf3 {[%clk 0:02:59.9]}
2... d5 {[%clk 0:02:56.2]} 3. Bf4 {[%clk 0:02:58.4]} 3... Bf5 {[%clk 0:02:55.7]}
4. e3 {[%clk 0:02:53.9]} 4... e6 {[%clk 0:02:55.9]} 5. Nbd2 {[%clk 0:02:53.8]}
5... Bd6 {[%clk 0:02:55.8]} 6. Bxd6 {[%clk 0:02:43.1]} 6... Qxd6 {[%clk
0:02:50.4]} 7. c4 {[%clk 0:02:42.9]} 7... Nbd7 {[%clk 0:02:45.2]} 8. Qb3 {[%clk
0:02:31.4]} 8... Rb8 {[%clk 0:02:36.7]} 9. cxd5 {[%clk 0:02:17.9]} 9... exd5
{[%clk 0:02:30.9]} 10. Nh4 {[%clk 0:02:17.6]} 10... Be6 {[%clk 0:02:20.6]} 11.
Bd3 {[%clk 0:02:17.5]} 11... O-O {[%clk 0:02:12.5]} 12. O-O {[%clk 0:02:16.5]}
12... c5 {[%clk 0:02:03.3]} 13. Qa3 {[%clk 0:02:15.9]} 13... Qb6 {[%clk
0:02:03.4]} 14. dxc5 {[%clk 0:02:09.7]} 14... Nxc5 {[%clk 0:02:04.3]} 15. Nhf3
{[%clk 0:02:04.8]} 15... Rbc8 {[%clk 0:01:59.6]} 16. Nd4 {[%clk 0:01:44.6]}
16... a6 {[%clk 0:01:54.9]} 17. N2f3 {[%clk 0:01:37]} 17... Rc7 {[%clk
0:01:47.4]} 18. Be2 {[%clk 0:01:21.2]} 18... Rfc8 {[%clk 0:01:36.8]} 19. h3
{[%clk 0:01:17.7]} 19... Nce4 {[%clk 0:01:35.1]} 20. Bd3 {[%clk 0:01:13.6]}
20... h6 {[%clk 0:01:27.5]} 21. b3 {[%clk 0:01:03.4]} 21... Rc3 {[%clk
0:01:21.6]} 22. Be2 {[%clk 0:00:57.2]} 22... Qc7 {[%clk 0:01:16.8]} 23. Rad1
{[%clk 0:00:52.2]} 23... Rc5 {[%clk 0:00:55.9]} 24. Qb2 {[%clk 0:00:36.1]} 24...
Bd7 {[%clk 0:00:55.3]} 25. Bd3 {[%clk 0:00:35.4]} 25... Rc3 {[%clk 0:00:53.9]}
26. Ne2 {[%clk 0:00:32.2]} 26... Rc5 {[%clk 0:00:53.8]} 27. Nf4 {[%clk
0:00:31.4]} 27... Nc3 {[%clk 0:00:48.3]} 28. Rde1 {[%clk 0:00:26.8]} 28... b5
{[%clk 0:00:33.3]} 29. b4 {[%clk 0:00:21.5]} 29... Na4 {[%clk 0:00:33.6]} 30.
Qe5 {[%clk 0:00:20.3]} 30... Rc3 {[%clk 0:00:34.2]} 31. Bb1 {[%clk 0:00:12.9]}
31... Qxe5 {[%clk 0:00:32.1]} 32. Nxe5 {[%clk 0:00:13.8]} 32... Be6 {[%clk
0:00:33]} 33. Ne2 {[%clk 0:00:11.9]} 33... R3c7 {[%clk 0:00:31.5]} 34. Rc1
{[%clk 0:00:08.2]} 34... Ne4 {[%clk 0:00:16.9]} 35. Nd3 {[%clk 0:00:06.3]} 35...
Nec3 {[%clk 0:00:15.5]} 36. Nxc3 {[%clk 0:00:06]} 36... Nxc3 {[%clk 0:00:16.4]}
37. Rfe1 {[%clk 0:00:05]} 37... Ne2+ {[%clk 0:00:14.6]} 38. Kh2 {[%clk 0:00:03]}
38... Nxc1 {[%clk 0:00:14.7]} 39. Nc5 {[%clk 0:00:03.5]} 39... Rxc5 {[%clk
0:00:15.4]} 40. bxc5 {[%clk 0:00:03.9]} 40... Rxc5 {[%clk 0:00:16.3]} 41. Rd1
{[%clk 0:00:04.2]} 41... Ne2 {[%clk 0:00:16.3]} 0-1

[Event "Early-Titled-Tuesday-Blitz-June-18-2024"]
[Site "Chess.com"]
[Date "2024.06.18"]
[Round "9"]
[White "Rurep26"]
[Black "Ordekalog"]
[Result "1-0"]
[WhiteElo "2729"]
[BlackElo "2620"]
[TimeControl "180+1"]
[EndTime "9:46:56 PDT"]
[Termination "Rurep26 won on time"]

1. d4 {[%clk 0:03:00.9]} 1... d5 {[%clk 0:02:58]} 2. Bf4 {[%clk 0:02:59.7]} 2...
e6 {[%clk 0:02:56.6]} 3. e3 {[%clk 0:02:59.6]} 3... Ne7 {[%clk 0:02:51.4]} 4.
Bd3 {[%clk 0:02:58.2]} 4... Ng6 {[%clk 0:02:51.2]} 5. Bg3 {[%clk 0:02:58.2]}
5... c5 {[%clk 0:02:45.8]} 6. c3 {[%clk 0:02:56.1]} 6... Nc6 {[%clk 0:02:44]} 7.
Nd2 {[%clk 0:02:55.7]} 7... cxd4 {[%clk 0:02:37.9]} 8. exd4 {[%clk 0:02:54.7]}
8... Bd7 {[%clk 0:02:32.9]} 9. Ngf3 {[%clk 0:02:50.8]} 9... Be7 {[%clk
0:02:30.9]} 10. h4 {[%clk 0:02:48.7]} 10... Bf6 {[%clk 0:02:20]} 11. h5 {[%clk
0:02:45.6]} 11... Nge7 {[%clk 0:02:19.2]} 12. Qe2 {[%clk 0:02:45.6]} 12... Rc8
{[%clk 0:02:11]} 13. h6 {[%clk 0:02:34.9]} 13... g6 {[%clk 0:02:06.2]} 14. Ne5
{[%clk 0:02:35.3]} 14... Qb6 {[%clk 0:01:52]} 15. Rb1 {[%clk 0:02:25.7]} 15...
Rg8 {[%clk 0:01:40.3]} 16. Ng4 {[%clk 0:02:18.7]} 16... Bh8 {[%clk 0:01:38.2]}
17. Bh4 {[%clk 0:02:17.3]} 17... Nxd4 {[%clk 0:01:17.6]} 18. cxd4 {[%clk
0:02:07.5]} 18... Qxd4 {[%clk 0:01:17.6]} 19. Nb3 {[%clk 0:02:02.3]} 19... Qb4+
{[%clk 0:01:15.9]} 20. Kf1 {[%clk 0:01:59.6]} 20... g5 {[%clk 0:01:04.4]} 21.
Bg3 {[%clk 0:01:54.2]} 21... Ng6 {[%clk 0:01:03.8]} 22. Ne5 {[%clk 0:01:44.6]}
22... Bxe5 {[%clk 0:01:01.3]} 23. Bxe5 {[%clk 0:01:45.5]} 23... f6 {[%clk
0:00:37.7]} 24. Bc3 {[%clk 0:01:35.9]} 24... Qe7 {[%clk 0:00:24.9]} 25. g3
{[%clk 0:01:24.9]} 25... a6 {[%clk 0:00:22]} 26. Rd1 {[%clk 0:01:20.3]} 26...
Kf7 {[%clk 0:00:19.5]} 27. Kg1 {[%clk 0:01:18]} 27... b5 {[%clk 0:00:14.7]} 28.
a3 {[%clk 0:01:17.7]} 28... Rc4 {[%clk 0:00:13.3]} 29. Bxc4 {[%clk 0:01:14.7]}
29... bxc4 {[%clk 0:00:14.2]} 30. Bb4 {[%clk 0:01:14]} 30... Qe8 {[%clk
0:00:12.5]} 31. Nc5 {[%clk 0:01:14.5]} 31... Bc6 {[%clk 0:00:12]} 32. Qe3 {[%clk
0:01:02.4]} 32... Nf4 {[%clk 0:00:10.1]} 33. Kf1 {[%clk 0:00:59.9]} 33... d4
{[%clk 0:00:09.4]} 34. Qxd4 {[%clk 0:00:51.6]} 34... Bg2+ {[%clk 0:00:09.3]} 35.
Ke1 {[%clk 0:00:52.1]} 35... Bxh1 {[%clk 0:00:07.5]} 36. gxf4 {[%clk 0:00:52.4]}
36... Bc6 {[%clk 0:00:06.8]} 37. Bc3 {[%clk 0:00:46]} 37... Rg6 {[%clk 0:00:05]}
38. fxg5 {[%clk 0:00:36.8]} 38... Bd5 {[%clk 0:00:04.8]} 39. Ne4 {[%clk
0:00:30.4]} 39... Qe7 {[%clk 0:00:02.6]} 40. Nxf6 {[%clk 0:00:26.4]} 40... Rxg5
{[%clk 0:00:01.7]} 41. Nxd5 {[%clk 0:00:24.3]} 41... Rg1+ {[%clk 0:00:02.2]} 42.
Kd2 {[%clk 0:00:24.4]} 42... Rxd1+ {[%clk 0:00:01.7]} 43. Kxd1 {[%clk
0:00:24.2]} 43... exd5 {[%clk 0:00:01]} 44. Qxd5+ {[%clk 0:00:24.6]} 1-0

[Event "Early-Titled-Tuesday-Blitz-June-18-2024"]
[Site "Chess.com"]
[Date "2024.06.18"]
[Round "9"]
[White "Hirna2005"]
[Black "SuperGPatzer"]
[Result "1-0"]
[WhiteElo "2292"]
[BlackElo "2104"]
[TimeControl "180+1"]
[EndTime "9:46:57 PDT"]
[Termination "Hirna2005 won by checkmate"]

1. e4 {[%clk 0:03:00.9]} 1... g5 {[%clk 0:02:59.3]} 2. d4 {[%clk 0:02:59.9]}
2... h6 {[%clk 0:02:58.7]} 3. Nc3 {[%clk 0:02:59.2]} 3... d6 {[%clk 0:02:58.4]}
4. Be3 {[%clk 0:02:55.8]} 4... Bg7 {[%clk 0:02:58.5]} 5. Qd2 {[%clk 0:02:55.7]}
5... Nc6 {[%clk 0:02:58]} 6. O-O-O {[%clk 0:02:53.6]} 6... e5 {[%clk 0:02:55]}
7. Nge2 {[%clk 0:02:49.1]} 7... Bg4 {[%clk 0:02:49.5]} 8. f3 {[%clk 0:02:48.5]}
8... Bh5 {[%clk 0:02:48.7]} 9. g4 {[%clk 0:02:44.5]} 9... Bg6 {[%clk 0:02:48.8]}
10. h4 {[%clk 0:02:44.7]} 10... gxh4 {[%clk 0:02:47.5]} 11. Bf2 {[%clk
0:02:38.4]} 11... exd4 {[%clk 0:02:27.4]} 12. Nxd4 {[%clk 0:02:37.7]} 12... Nxd4
{[%clk 0:02:26.9]} 13. Bxd4 {[%clk 0:02:37.8]} 13... Bxd4 {[%clk 0:02:26.4]} 14.
Qxd4 {[%clk 0:02:37.6]} 14... Qf6 {[%clk 0:02:26]} 15. Qa4+ {[%clk 0:02:26.9]}
15... c6 {[%clk 0:02:23.9]} 16. Be2 {[%clk 0:02:22.9]} 16... Ne7 {[%clk
0:02:15.5]} 17. Nd5 {[%clk 0:02:11.1]} 17... Nxd5 {[%clk 0:02:13.1]} 18. exd5
{[%clk 0:02:11.2]} 18... O-O {[%clk 0:02:05.2]} 19. dxc6 {[%clk 0:02:11.1]}
19... bxc6 {[%clk 0:02:04.9]} 20. Qd4 {[%clk 0:02:01.4]} 20... Qxd4 {[%clk
0:01:54.2]} 21. Rxd4 {[%clk 0:02:01.1]} 21... d5 {[%clk 0:01:48.4]} 22. Rxh4
{[%clk 0:02:00.4]} 22... Kg7 {[%clk 0:01:47.8]} 23. Rd1 {[%clk 0:01:54.2]} 23...
Rfe8 {[%clk 0:01:46.8]} 24. Ba6 {[%clk 0:01:48.8]} 24... Rab8 {[%clk 0:01:43.9]}
25. Rh2 {[%clk 0:01:28.1]} 25... Rb6 {[%clk 0:01:43.1]} 26. Bd3 {[%clk
0:01:27.7]} 26... Re3 {[%clk 0:01:39.3]} 27. Bxg6 {[%clk 0:01:22]} 27... fxg6
{[%clk 0:01:39.3]} 28. Rf2 {[%clk 0:01:22]} 28... g5 {[%clk 0:01:38.2]} 29. b3
{[%clk 0:01:20]} 29... Rb7 {[%clk 0:01:34.8]} 30. Kd2 {[%clk 0:01:18.4]} 30...
d4 {[%clk 0:01:33.2]} 31. Re1 {[%clk 0:01:16.7]} 31... Rbe7 {[%clk 0:01:30.6]}
32. Rfe2 {[%clk 0:01:16.6]} 32... Rxe2+ {[%clk 0:01:10.7]} 33. Rxe2 {[%clk
0:01:16.7]} 33... Rxe2+ {[%clk 0:01:11.2]} 34. Kxe2 {[%clk 0:01:17.1]} 34... Kf6
{[%clk 0:01:11.8]} 35. Kd3 {[%clk 0:01:14.2]} 35... Ke5 {[%clk 0:01:11.7]} 36.
b4 {[%clk 0:01:11.3]} 36... a6 {[%clk 0:01:06.6]} 37. a4 {[%clk 0:01:09.7]}
37... Kd5 {[%clk 0:01:06.3]} 38. c4+ {[%clk 0:01:06.5]} 38... dxc3 {[%clk
0:01:06]} 39. Kxc3 {[%clk 0:01:06.6]} 39... Ke6 {[%clk 0:00:12.2]} 40. Kc4
{[%clk 0:01:02.3]} 40... Kd6 {[%clk 0:00:11.8]} 41. Kd4 {[%clk 0:01:02.6]} 41...
Kd7 {[%clk 0:00:10.8]} 42. Ke5 {[%clk 0:00:58.2]} 42... Ke7 {[%clk 0:00:09.4]}
43. Kd4 {[%clk 0:00:44.9]} 43... Kd6 {[%clk 0:00:09.3]} 44. Kc4 {[%clk
0:00:45.2]} 44... Ke7 {[%clk 0:00:09]} 45. Kc5 {[%clk 0:00:45.1]} 45... Kd7
{[%clk 0:00:08]} 46. Kb6 {[%clk 0:00:45.4]} 46... Kd6 {[%clk 0:00:08.1]} 47.
Kxa6 {[%clk 0:00:45.3]} 47... c5 {[%clk 0:00:08.6]} 48. b5 {[%clk 0:00:43.3]}
48... c4 {[%clk 0:00:08]} 49. b6 {[%clk 0:00:43.6]} 49... c3 {[%clk 0:00:06.9]}
50. b7 {[%clk 0:00:43.9]} 50... c2 {[%clk 0:00:02]} 51. b8=Q+ {[%clk 0:00:43.9]}
51... Kc5 {[%clk 0:00:02.7]} 52. Qc7+ {[%clk 0:00:43.2]} 52... Kb4 {[%clk
0:00:03.6]} 53. Qxc2 {[%clk 0:00:42.8]} 53... h5 {[%clk 0:00:04.5]} 54. gxh5
{[%clk 0:00:40.8]} 54... g4 {[%clk 0:00:04.6]} 55. fxg4 {[%clk 0:00:39.2]} 55...
Ka3 {[%clk 0:00:05.5]} 56. Qb1 {[%clk 0:00:37.3]} 56... Kxa4 {[%clk 0:00:05.2]}
57. Kb6 {[%clk 0:00:37.6]} 57... Ka3 {[%clk 0:00:05.2]} 58. Kc5 {[%clk
0:00:37.9]} 58... Ka4 {[%clk 0:00:05.6]} 59. Qa2# {[%clk 0:00:37.9]} 1-0

[Event "Early-Titled-Tuesday-Blitz-June-18-2024"]
[Site "Chess.com"]
[Date "2024.06.18"]
[Round "9"]
[White "Puzzlebot_1294"]
[Black "Pelusiansky"]
[Result "1-0"]
[WhiteElo "2685"]
[BlackElo "2455"]
[TimeControl "180+1"]
[EndTime "9:47:00 PDT"]
[Termination "Puzzlebot_1294 won on time"]

1. d4 {[%clk 0:02:58.3]} 1... Nf6 {[%clk 0:02:58.9]} 2. Bf4 {[%clk 0:02:57.7]}
2... e6 {[%clk 0:02:58.6]} 3. e3 {[%clk 0:02:58.1]} 3... Bd6 {[%clk 0:02:59.1]}
4. Bg3 {[%clk 0:02:57.8]} 4... O-O {[%clk 0:02:58.5]} 5. Nf3 {[%clk 0:02:58.3]}
5... b6 {[%clk 0:02:58.3]} 6. c3 {[%clk 0:02:57.3]} 6... Bb7 {[%clk 0:02:58.5]}
7. Nbd2 {[%clk 0:02:57.8]} 7... Re8 {[%clk 0:02:55.6]} 8. Bd3 {[%clk 0:02:57]}
8... Bf8 {[%clk 0:02:55.7]} 9. e4 {[%clk 0:02:56.3]} 9... d6 {[%clk 0:02:48.8]}
10. Qe2 {[%clk 0:02:55.1]} 10... Nbd7 {[%clk 0:02:48.2]} 11. O-O {[%clk
0:02:52.3]} 11... Nh5 {[%clk 0:02:41.3]} 12. e5 {[%clk 0:02:43.7]} 12... Nxg3
{[%clk 0:02:33.3]} 13. hxg3 {[%clk 0:02:44.6]} 13... g6 {[%clk 0:02:27.7]} 14.
Rfe1 {[%clk 0:02:43.2]} 14... Bg7 {[%clk 0:02:26]} 15. Rad1 {[%clk 0:02:41.2]}
15... a6 {[%clk 0:02:19.2]} 16. Be4 {[%clk 0:02:35.5]} 16... d5 {[%clk
0:02:17.4]} 17. Bb1 {[%clk 0:02:33.2]} 17... c5 {[%clk 0:02:18.1]} 18. g4 {[%clk
0:02:32]} 18... a5 {[%clk 0:02:17.6]} 19. Qe3 {[%clk 0:02:30.6]} 19... f6 {[%clk
0:02:14.3]} 20. exf6 {[%clk 0:02:27.3]} 20... Nxf6 {[%clk 0:02:14.4]} 21. Ng5
{[%clk 0:02:22.5]} 21... Qd6 {[%clk 0:01:58.8]} 22. Qh3 {[%clk 0:02:13.5]} 22...
h6 {[%clk 0:01:49.5]} 23. Ngf3 {[%clk 0:01:31.2]} 23... g5 {[%clk 0:01:40.6]}
24. Bg6 {[%clk 0:01:29.7]} 24... Rf8 {[%clk 0:01:34.1]} 25. Ne5 {[%clk
0:01:27.8]} 25... cxd4 {[%clk 0:01:28.7]} 26. cxd4 {[%clk 0:01:26.8]} 26... Nd7
{[%clk 0:01:26.6]} 27. Ndf3 {[%clk 0:01:24.3]} 27... Rf4 {[%clk 0:01:26.6]} 28.
g3 {[%clk 0:01:17.5]} 28... Rf6 {[%clk 0:01:18.9]} 29. Qh5 {[%clk 0:00:56.3]}
29... Raf8 {[%clk 0:00:47.4]} 30. Nxg5 {[%clk 0:00:55.7]} 30... Rxg6 {[%clk
0:00:15.9]} 31. Nxg6 {[%clk 0:00:52.3]} 31... hxg5 {[%clk 0:00:16.1]} 32. Nxf8
{[%clk 0:00:52.8]} 32... Nxf8 {[%clk 0:00:16.6]} 33. Qxg5 {[%clk 0:00:49]} 33...
Qb4 {[%clk 0:00:15.8]} 34. Qd8 {[%clk 0:00:44.7]} 34... Kf7 {[%clk 0:00:10.4]}
35. Qc7+ {[%clk 0:00:42.3]} 35... Qe7 {[%clk 0:00:10.8]} 36. Qxb6 {[%clk
0:00:42.9]} 36... Bc8 {[%clk 0:00:09.7]} 37. Rc1 {[%clk 0:00:42.3]} 37... Bd7
{[%clk 0:00:09.4]} 38. Rc7 {[%clk 0:00:42.1]} 38... Ke8 {[%clk 0:00:08.8]} 39.
Rec1 {[%clk 0:00:39.4]} 39... Bh6 {[%clk 0:00:06.6]} 40. R1c2 {[%clk 0:00:37]}
40... Bg7 {[%clk 0:00:06]} 41. Qxa5 {[%clk 0:00:36.4]} 41... Bxd4 {[%clk
0:00:05.7]} 42. Rb7 {[%clk 0:00:30.9]} 42... Qf6 {[%clk 0:00:05.1]} 43. Qd2
{[%clk 0:00:26.2]} 43... Be5 {[%clk 0:00:04.2]} 44. a4 {[%clk 0:00:22.5]} 44...
Bd6 {[%clk 0:00:01.8]} 45. a5 {[%clk 0:00:21.8]} 45... Qf3 {[%clk 0:00:02.1]}
46. Qe3 {[%clk 0:00:20.8]} 1-0

[Event "Early-Titled-Tuesday-Blitz-June-18-2024"]
[Site "Chess.com"]
[Date "2024.06.18"]
[Round "9"]
[White "KoshkaMatrioshka"]
[Black "EvgenyBurmakin"]
[Result "1-0"]
[WhiteElo "2590"]
[BlackElo "2404"]
[TimeControl "180+1"]
[EndTime "9:47:01 PDT"]
[Termination "KoshkaMatrioshka won on time"]

1. c4 {[%clk 0:03:00.1]} 1... b6 {[%clk 0:02:58.4]} 2. Nf3 {[%clk 0:02:59.3]}
2... e6 {[%clk 0:02:58.8]} 3. g3 {[%clk 0:02:59.6]} 3... Bb7 {[%clk 0:02:58.9]}
4. Bg2 {[%clk 0:03:00.1]} 4... f5 {[%clk 0:02:58.8]} 5. O-O {[%clk 0:03:00.2]}
5... Nf6 {[%clk 0:02:59.2]} 6. Nc3 {[%clk 0:03:00.9]} 6... Bb4 {[%clk
0:02:55.6]} 7. d3 {[%clk 0:02:47.8]} 7... Bxc3 {[%clk 0:02:52.9]} 8. bxc3 {[%clk
0:02:48]} 8... O-O {[%clk 0:02:53.6]} 9. a4 {[%clk 0:02:47.4]} 9... a5 {[%clk
0:02:49.8]} 10. c5 {[%clk 0:02:26.1]} 10... bxc5 {[%clk 0:02:46.7]} 11. Be3
{[%clk 0:02:24.8]} 11... d6 {[%clk 0:02:44.6]} 12. Qb3 {[%clk 0:02:10]} 12...
Bd5 {[%clk 0:02:42.9]} 13. c4 {[%clk 0:02:08.2]} 13... Bc6 {[%clk 0:02:41.6]}
14. Ng5 {[%clk 0:02:04.7]} 14... Qd7 {[%clk 0:02:29.7]} 15. Rfb1 {[%clk
0:01:41.1]} 15... h6 {[%clk 0:02:07.5]} 16. Nf3 {[%clk 0:01:37.6]} 16... Na6
{[%clk 0:02:04]} 17. Nd2 {[%clk 0:01:26.6]} 17... Bxg2 {[%clk 0:02:00.7]} 18.
Kxg2 {[%clk 0:01:27]} 18... Rfb8 {[%clk 0:01:52.1]} 19. Qd1 {[%clk 0:01:17.8]}
19... Qc6+ {[%clk 0:01:51.7]} 20. Kg1 {[%clk 0:01:14.9]} 20... Ng4 {[%clk
0:01:44.6]} 21. Nf1 {[%clk 0:01:14.8]} 21... Nxe3 {[%clk 0:01:27.5]} 22. Nxe3
{[%clk 0:01:14.6]} 22... Rxb1 {[%clk 0:01:25]} 23. Rxb1 {[%clk 0:01:14.1]} 23...
Rb8 {[%clk 0:01:22.8]} 24. Rb5 {[%clk 0:01:14.6]} 24... Rb6 {[%clk 0:01:05.5]}
25. Qd2 {[%clk 0:01:06.9]} 25... Nb4 {[%clk 0:00:51.6]} 26. Nd1 {[%clk
0:01:06.5]} 26... Qb7 {[%clk 0:00:37.7]} 27. Rxa5 {[%clk 0:00:59.6]} 27... c6
{[%clk 0:00:33.5]} 28. Nc3 {[%clk 0:00:46.7]} 28... Na6 {[%clk 0:00:31.3]} 29.
Qf4 {[%clk 0:00:42.8]} 29... Qc7 {[%clk 0:00:22.8]} 30. Kg2 {[%clk 0:00:34.2]}
30... g5 {[%clk 0:00:19.4]} 31. Qe3 {[%clk 0:00:32.1]} 31... Kf7 {[%clk
0:00:19.2]} 32. h4 {[%clk 0:00:31.6]} 32... Kg6 {[%clk 0:00:15.5]} 33. hxg5
{[%clk 0:00:30.9]} 33... hxg5 {[%clk 0:00:15.1]} 34. Qd2 {[%clk 0:00:26.7]}
34... e5 {[%clk 0:00:11.3]} 35. Nd1 {[%clk 0:00:26.6]} 35... f4 {[%clk
0:00:10.5]} 36. Nc3 {[%clk 0:00:25.5]} 36... Qb7 {[%clk 0:00:08]} 37. Ne4 {[%clk
0:00:22.8]} 37... Qd7 {[%clk 0:00:05.4]} 38. f3 {[%clk 0:00:17.6]} 38... Nc7
{[%clk 0:00:04.9]} 39. Ra7 {[%clk 0:00:16.8]} 39... Qc8 {[%clk 0:00:03]} 40. Qe1
{[%clk 0:00:16.9]} 40... Ne8 {[%clk 0:00:01.9]} 41. Qh1 {[%clk 0:00:16.9]} 41...
Rb7 {[%clk 0:00:01.7]} 42. Rxb7 {[%clk 0:00:15.6]} 42... Qxb7 {[%clk 0:00:02.6]}
43. Qh8 {[%clk 0:00:16]} 43... Ng7 {[%clk 0:00:01.8]} 44. Qd8 {[%clk 0:00:14]}
1-0

[Event "Early-Titled-Tuesday-Blitz-June-18-2024"]
[Site "Chess.com"]
[Date "2024.06.18"]
[Round "9"]
[White "AlexeiShirov"]
[Black "Evan_Attaker"]
[Result "0-1"]
[WhiteElo "2865"]
[BlackElo "2742"]
[TimeControl "180+1"]
[EndTime "9:47:04 PDT"]
[Termination "Evan_Attaker won by resignation"]

1. e4 {[%clk 0:03:00.9]} 1... d6 {[%clk 0:02:58.7]} 2. d4 {[%clk 0:02:59.8]}
2... Nf6 {[%clk 0:02:56.9]} 3. Nc3 {[%clk 0:02:59]} 3... g6 {[%clk 0:02:57]} 4.
f4 {[%clk 0:02:58.6]} 4... Bg7 {[%clk 0:02:57.4]} 5. Nf3 {[%clk 0:02:58]} 5...
O-O {[%clk 0:02:57.9]} 6. e5 {[%clk 0:02:56.5]} 6... dxe5 {[%clk 0:02:57.1]} 7.
fxe5 {[%clk 0:02:54.2]} 7... Nd5 {[%clk 0:02:57.5]} 8. Bc4 {[%clk 0:02:53.4]}
8... Nb6 {[%clk 0:02:57.9]} 9. Be2 {[%clk 0:02:47]} 9... c5 {[%clk 0:02:55.4]}
10. d5 {[%clk 0:02:44.7]} 10... Bg4 {[%clk 0:02:51.5]} 11. O-O {[%clk 0:02:28]}
11... N8d7 {[%clk 0:02:40.9]} 12. e6 {[%clk 0:02:25.7]} 12... fxe6 {[%clk
0:02:40.9]} 13. Ng5 {[%clk 0:02:25.4]} 13... Bxe2 {[%clk 0:02:34.2]} 14. Qxe2
{[%clk 0:02:24.2]} 14... Rxf1+ {[%clk 0:02:31.2]} 15. Qxf1 {[%clk 0:02:22.3]}
15... Qf8 {[%clk 0:02:15.3]} 16. Qxf8+ {[%clk 0:02:01.8]} 16... Nxf8 {[%clk
0:02:16.2]} 17. Nxe6 {[%clk 0:01:54.5]} 17... Bxc3 {[%clk 0:02:07]} 18. bxc3
{[%clk 0:01:50.2]} 18... Nxd5 {[%clk 0:02:06.8]} 19. Nxf8 {[%clk 0:01:43.7]}
19... Rxf8 {[%clk 0:02:05.2]} 20. Bd2 {[%clk 0:01:40.2]} 20... Rd8 {[%clk
0:01:58.9]} 21. Rb1 {[%clk 0:01:33.5]} 21... b6 {[%clk 0:01:58]} 22. a4 {[%clk
0:01:30.6]} 22... Kf7 {[%clk 0:01:54.8]} 23. Kf2 {[%clk 0:01:28.2]} 23... Nf6
{[%clk 0:01:54]} 24. Be1 {[%clk 0:01:26.9]} 24... Rd5 {[%clk 0:01:34.4]} 25. a5
{[%clk 0:01:22.6]} 25... bxa5 {[%clk 0:01:21.4]} 26. Rb7 {[%clk 0:01:20.9]}
26... c4 {[%clk 0:01:14.1]} 27. Rxa7 {[%clk 0:01:19.8]} 27... Ng4+ {[%clk
0:01:14.1]} 28. Kf3 {[%clk 0:01:14.2]} 28... Nxh2+ {[%clk 0:01:10.6]} 29. Ke4
{[%clk 0:01:13.9]} 29... Rg5 {[%clk 0:00:52.5]} 30. g3 {[%clk 0:00:52.1]} 30...
Ng4 {[%clk 0:00:39.7]} 31. Bd2 {[%clk 0:00:50.9]} 31... Re5+ {[%clk 0:00:35.7]}
32. Kd4 {[%clk 0:00:48.1]} 32... Re2 {[%clk 0:00:18.6]} 33. Bg5 {[%clk
0:00:47.1]} 33... h6 {[%clk 0:00:18.5]} 34. Bf4 {[%clk 0:00:43.8]} 34... g5
{[%clk 0:00:17.6]} 35. Bc7 {[%clk 0:00:42.7]} 35... Rxc2 {[%clk 0:00:17.2]} 36.
Kxc4 {[%clk 0:00:39.1]} 36... h5 {[%clk 0:00:15.7]} 37. Bxa5 {[%clk 0:00:35.3]}
37... h4 {[%clk 0:00:15.1]} 38. gxh4 {[%clk 0:00:33.6]} 38... gxh4 {[%clk
0:00:16]} 39. Bb4 {[%clk 0:00:27.7]} 39... Re2 {[%clk 0:00:14.7]} 40. Kd3 {[%clk
0:00:25.4]} 40... Re1 {[%clk 0:00:14.6]} 41. Kd2 {[%clk 0:00:21.7]} 41... Re4
{[%clk 0:00:14.1]} 42. Kd3 {[%clk 0:00:17.9]} 42... Nf2+ {[%clk 0:00:13.5]} 43.
Kd2 {[%clk 0:00:17.1]} 43... h3 {[%clk 0:00:14.1]} 44. Ra1 {[%clk 0:00:16]}
44... h2 {[%clk 0:00:14.2]} 0-1